Cogmind - Beta 11 @@@ ROGUE MODE // 2022.04.04 @ 00:30:06 Player: Runia Result: Destroyed by 8R-AWN with 8R-AWN's Boregun Performance ------------- Evolutions (1) 500 Regions Visited (5) 1000 Robots Destroyed (79) 395 Value Destroyed (2182) 2182 Prototype IDs (9) 180 Alien Tech Used (0) 0 Bonus (89) 89 TOTAL SCORE: 4346 Bonus ------- High Alert Combat Kills 89 Cogmind --------- Core Integrity 0/400 Matter 232/300 Energy 100/100 System Corruption 0% Temperature Cool (0) Movement Treading (160) Location -9/Exiles Parts ------- > --- POWER (1) -------- (None) > --- PROPULSION (3) --- Light Treads Light Treads > --- UTILITY (3) ------ Large Storage Unit Improved Targeting Computer > --- WEAPON (2) ------- Improved Assault Rifle Improved Assault Rifle > --- INVENTORY (15) --- Disposable Heat Sink Medium Matter Pod (100) Medium Matter Pod (4) Heavy Assault Rifle Improved Assault Rifle Rocket Launcher Peak State ------------ > --- POWER ------------ Improved Ion Engine > --- PROPULSION ------- Light Treads Light Treads Light Treads > --- UTILITY ---------- Large Storage Unit Structural Scanner Medium Armor Plating > --- WEAPON ----------- Improved Assault Rifle Improved Assault Rifle > --- INVENTORY -------- Ion Engine Light Treads Light Treads Improved Heat Sink Large Matter Pod Medium Armor Plating Improved Medium Laser Improved Medium Laser Advanced Beam Cannon Light Assault Rifle Improved Assault Rifle Improved Assault Rifle Improved Assault Rifle Grenade Launcher Katana [Rating: 18] Favorites ----------- Power Improved Ion Engine Engine Improved Ion Engine Propulsion Light Treads Treads Light Treads Leg Aluminum Leg Utility Large Storage Unit Device Structural Scanner Storage Large Storage Unit Processor Improved Targeting Computer Protection Medium Armor Plating Weapon Shotgun Energy Gun Small Laser Energy Cannon Advanced Beam Cannon Ballistic Gun Shotgun Launcher Rocket Launcher Special Weapon Plasma Cutter Impact Weapon Great Maul Slashing Weapon Katana Build | -11 -10 -10 -9 -9 -9 ------- Run | Scr Mat Min Mat Min Exi Slots Evolved 2 | . . . 2 . . Power . | . . . . . . Propulsion 1 | . . . 1 . . Utility 1 | . . . 1 . . Weapon . | . . . . . . Parts Attached 59 | 4 8 . 36 . 11 Power 4 | . 1 . 3 . . Engine 4 | . 1 . 3 . . Core . | . . . . . . Reactor . | . . . . . . Propulsion 18 | 2 . . 14 . 2 Treads 17 | 2 . . 13 . 2 Leg 1 | . . . 1 . . Wheel . | . . . . . . Hover . | . . . . . . Flight . | . . . . . . Utility 12 | 1 4 . 4 . 3 Device 2 | 1 . . 1 . . Storage 2 | . 1 . . . 1 Processor 1 | . . . . . 1 Hackware . | . . . . . . Protection 7 | . 3 . 3 . 1 Artifact . | . . . . . . Weapon 25 | 1 3 . 15 . 6 Energy Gun 1 | 1 . . . . . Energy Cannon 1 | . 1 . . . . Ballistic Gun 16 | . 2 . 10 . 4 Ballistic Cannon . | . . . . . . Launcher 3 | . . . 2 . 1 Special Weapon 1 | . . . . . 1 Impact Weapon 1 | . . . 1 . . Slashing Weapon 2 | . . . 2 . . Piercing Weapon . | . . . . . . Special Melee Weapon . | . . . . . . Unidentified Prototypes 1 | . 1 . . . . Parts Lost 17 | . 1 . 6 . 10 Power 1 | . . . . . 1 Propulsion 5 | . . . 2 . 3 Utility 5 | . 1 . 2 . 2 Weapon 6 | . . . 2 . 4 Highest Loss Streak 8 | . 1 . 3 . 8 To Critical Strikes 6 | . . . . . 6 Average Slot Usage (%) 99 | . 99 100 98 100 97 Engine 12 | . 14 14 11 11 9 Treads 30 | . 28 28 32 33 31 Device 5 | . 3 . 9 11 2 Storage 12 | . 14 14 11 11 11 Processor 1 | . . . . . 8 Protection 11 | . 10 14 11 11 10 Ballistic Gun 22 | . 24 28 20 22 20 Naked Turns . | . . . . . . Heaviest Build 45 | 13 38 38 45 37 37 Greatest Support 60 | 40 40 40 60 60 60 Greatest Overweight (x) 1 | . . . 1 . . Average Overweight (x) . | . . . . . . Largest Inventory Capacity 15 | 8 15 15 15 15 15 Average Capacity 14 | 8 12 15 15 15 15 Most Carried 15 | 6 15 14 15 15 15 Average Carried 12 | 1 9 14 14 14 13 Final Capacity 15 | 8 15 15 15 15 15 Final Carried 15 | 2 14 14 15 15 6 Class Distribution -------------------- 65% | Mutant 34% | Scavenger-Mutant Dominant Class ---------------- Mutant | -10/Materials Mutant | -10/Mines Mutant | -9/Materials Scavenger-Mutant | -9/Mines Scavenger-Mutant | -9/Exiles Resources | -11 -10 -10 -9 -9 -9 ----------- Run | Scr Mat Min Mat Min Exi Matter Collected 2318 | 237 590 89 1012 58 332 Remotely . | . . . . . . Salvage Created 3025 | 100 886 117 1815 104 3 Parts 172 | 7 52 7 100 6 . Haulers Intercepted 6 | . 2 . 4 . . Recyclers Shooed 5 | 1 3 . 1 . . Parts Field Recycled . | . . . . . . Retrieved Matter . | . . . . . . Parts Self-Destructed . | . . . . . . Prevented . | . . . . . . Kills | -11 -10 -10 -9 -9 -9 ------- Run | Scr Mat Min Mat Min Exi Combat Hostiles Destroyed 62 | . 18 5 33 2 4 Guns 55 | . 18 5 29 2 1 AOE 7 | . . . 4 . 3 Classes Destroyed 11 | 2 3 1 4 . 1 Worker 3 | . . . 3 . . Tunneler 2 | 1 . . 1 . . Hauler 6 | . 2 . 4 . . Recycler 5 | 1 2 . 2 . . Watcher 5 | . 1 . 4 . . Swarmer 6 | . . 3 3 . . Grunt 41 | . 18 2 19 2 . Brawler 1 | . . . 1 . . Duelist 1 | . . . 1 . . Sentry 9 | . . . 9 . . Assembled 4 | . . . . . 4 Best Kill Streak 4 | 2 3 3 4 1 4 Combat Bots Only 4 | . 3 3 3 1 4 Max Kills in Single Turn 3 | 1 1 2 3 1 1 Gunslinging 1 | . . . 1 . . Exploded 3 | . . . 3 . 1 Melee . | . . . . . . Uniques/NPCs Destroyed . | . . . . . . Combat | -11 -10 -10 -9 -9 -9 -------- Run | Scr Mat Min Mat Min Exi Damage Taken 3607 | . 711 130 1356 132 1278 Core 557 | . 123 27 164 . 243 Absorbed by Shields . | . . . . . . Core Remaining (%) 70 | 100 . 40 . . . Volleys Fired 246 | 7 72 10 106 8 43 Largest 2 | 2 2 2 2 2 2 Hottest 60 | 60 60 46 46 46 46 Shots Fired 482 | 14 144 20 210 16 78 Gun 472 | 14 144 20 208 16 70 Cannon . | . . . . . . Launcher 6 | . . . 2 . 4 Special 4 | . . . . . 4 Kinetic 435 | 7 114 20 208 16 70 Thermal 41 | 7 30 . . . 4 Explosive 6 | . . . 2 . 4 Electromagnetic . | . . . . . . Robot Hit Streak 34 | 4 11 10 31 8 34 Robot Miss Streak 6 | 4 4 6 3 1 1 Penetration Max . | . . . . . . Secondary Targets 8 | . 3 . 5 . . Max Gunslinging Chain 1 | . 1 . 1 . . Shots Hit Robots 370 | 8 107 12 165 13 65 Core Hits 162 | 4 54 8 75 5 16 Critical Kills 2 | . 1 . 1 . . Critical Parts Destroyed . | . . . . . . Critical Strikes 3 | . 1 . 2 . . Destroy 2 | . 1 . 1 . . Sever 1 | . . . 1 . . Melee Attacks 8 | . . . 8 . . Impact 3 | . . . 3 . . Slashing 5 | . . . 5 . . Piercing . | . . . . . . Sneak Attacks 3 | . . . 3 . . Combat Hostiles . | . . . . . . Follow-up Attacks . | . . . . . . Damage Inflicted 6173 | 70 1532 227 3002 234 1108 Guns 5458 | 70 1532 222 2513 206 915 Cannons . | . . . . . . Explosions 424 | . . . 233 . 191 Melee 256 | . . . 256 . . Ramming 33 | . . 5 . 28 . Kinetic 5177 | 39 1282 222 2513 206 915 Thermal 283 | 31 250 . . . 2 Explosive 424 | . . . 233 . 191 Electromagnetic . | . . . . . . Impact 184 | . . . 184 . . Slashing 72 | . . . 72 . . Piercing . | . . . . . . Highest Corruption . | . . . . . . Average Corruption . | . . . . . . Corruption Purged . | . . . . . . Corruption Blocked . | . . . . . . Overload Shots . | . . . . . . Overflow Damage 147 | . . . 137 . 10 Projectiles . | . . . . . . Explosions 15 | . . . 5 . 10 Melee 132 | . . . 132 . . Knockbacks . | . . . . . . Impact . | . . . . . . Kinetic . | . . . . . . Secondary . | . . . . . . Self-Inflicted Damage 69 | . . . 11 . 58 Shots 3 | . . . 1 . 2 Rammed 8 | . 1 1 . 6 . Targets Rammed 8 | . 1 1 . 6 . Kicked . | . . . . . . Crushed . | . . . . . . Highest Temperature 128 | 40 128 36 23 9 . Average Temperature 18 | 23 27 14 3 3 . Received Heat Transfer 996 | . 387 75 459 75 . Siege Activations . | . . . . . . Robots Corrupted . | . . . . . . Combat Hostiles . | . . . . . . Parts Fried 2 | . . . 2 . . Impact Corruptions 3 | . . . 3 . . Robots Melted . | . . . . . . Combat Hostiles . | . . . . . . Parts Melted 1 | . 1 . . . . Heat Transferred 668 | 75 575 . . . 18 Parts Sabotaged . | . . . . . . Parts Stolen . | . . . . . . Parts Stripped . | . . . . . . Power Chain Reactions . | . . . . . . Missiles Intercepted . | . . . . . . Alert | -11 -10 -10 -9 -9 -9 ------- Run | Scr Mat Min Mat Min Exi Peak Influence 606 | 10 214 218 606 267 . Initial 217 | . 6 83 . 217 . Average 215 | 6 101 90 339 259 . Maximum Alert Level 2 | . 1 1 2 1 . Low Security (%) 55 | 100 98 69 26 . . Level 1 26 | . 1 30 32 100 . Level 2 17 | . . . 40 . . Level 3 . | . . . . . . Level 4 . | . . . . . . Level 5 . | . . . . . . High Security . | . . . . . . Max Security . | . . . . . . Squads Dispatched 9 | . 5 . 4 . . Investigation 9 | . 5 . 4 . . Extermination . | . . . . . . Reinforcement . | . . . . . . Assault . | . . . . . . Garrison . | . . . . . . Intercept . | . . . . . . Searches Triggered . | . . . . . . Construction Impeded . | . . . . . . Haulers Reinforced . | . . . . . . Active Scanning Responses . | . . . . . . Cargo Convoy Interrupts . | . . . . . . Stealth | -11 -10 -10 -9 -9 -9 --------- Run | Scr Mat Min Mat Min Exi Distress Signals 5 | . 2 . 2 1 . Communications Jammed . | . . . . . . Distress Signals . | . . . . . . Times Spotted 96 | . 33 3 50 2 8 Peak Tracking Total 11 | . 5 2 5 2 11 Tactical Retreats 4 | . 1 . 2 . 1 Traps | -11 -10 -10 -9 -9 -9 ------- Run | Scr Mat Min Mat Min Exi Traps Triggered 7 | . 5 . 2 . . Indirectly . | . . . . . . Trap Hack Attempts . | . . . . . . Triggered . | . . . . . . Disarmed . | . . . . . . Reprogrammed . | . . . . . . Reused . | . . . . . . Traps Extracted . | . . . . . . Installed . | . . . . . . Triggered . | . . . . . . Exploded 3 | . . . . . 3 Machines | -11 -10 -10 -9 -9 -9 ---------- Run | Scr Mat Min Mat Min Exi Machines Disabled 5 | . . . 1 . 4 Max in Single Turn 2 | . . . 1 . 2 Machines Sabotaged . | . . . . . . Garrisons Compromised . | . . . . . . Overloaded Fab Kills . | . . . . . . Hacking | -11 -10 -10 -9 -9 -9 --------- Run | Scr Mat Min Mat Min Exi Machines Accessed 24 | . 10 . 13 . 1 Terminals 18 | . 8 . 10 . . Fabricators . | . . . . . . Repair Stations . | . . . . . . Recycling Units 4 | . 2 . 2 . . Scanalyzers 1 | . . . 1 . . Garrison Access . | . . . . . . Total Hacks 58 | . 25 . 32 . 1 Successful 35 | . 16 . 18 . 1 Failed 23 | . 9 . 14 . . Catastrophic 1 | . . . 1 . . Database Lockouts . | . . . . . . Manual 21 | . 13 . 8 . . Terminals 51 | . 23 . 28 . . Fabricators . | . . . . . . Repair Stations . | . . . . . . Recycling Units 4 | . 2 . 2 . . Scanalyzers 2 | . . . 2 . . Garrison Access . | . . . . . . Terminal Hacks 25 | . 11 . 13 . 1 Record 1 | . . . . . 1 Robot Analysis 1 | . 1 . . . . Prototype ID Bank 6 | . 3 . 3 . . Terminal Index 3 | . 1 . 2 . . Locate Traps 4 | . 2 . 2 . . Dispatch Records 1 | . 1 . . . . Hauler Manifests 3 | . 1 . 2 . . Zone Layout 6 | . 2 . 4 . . Fabricator Hacks . | . . . . . . Repair Station Hacks . | . . . . . . Recycling Unit Hacks . | . . . . . . Scanalyzer 2 | . . . 2 . . Insert Component 1 | . . . 1 . . Analyze 1 | . . . 1 . . Garrison Access Hacks . | . . . . . . Unauthorized Hacks 8 | . 5 . 3 . . Terminals 4 | . 3 . 1 . . Botnet 2 | . 2 . . . . Disrupt 1 | . . . 1 . . Operators 1 | . 1 . . . . Fabricators . | . . . . . . Repair Stations . | . . . . . . Recycling Units 4 | . 2 . 2 . . Tunnel 4 | . 2 . 2 . . Scanalyzers . | . . . . . . Garrison Access . | . . . . . . Data Cores Recovered . | . . . . . . Used . | . . . . . . Hacking Detections 15 | . 6 . 9 . . Full Trace Events 1 | . 1 . . . . Feedback Events . | . . . . . . Feedback Blocked . | . . . . . . Robot Schematics Acquired . | . . . . . . Robots Built . | . . . . . . Authchips . | . . . . . . Time . | . . . . . . Total Robot Build Rating . | . . . . . . Part Schematics Acquired 1 | . . . 1 . . Parts Built . | . . . . . . Authchips . | . . . . . . Time . | . . . . . . Total Part Build Rating . | . . . . . . Parts Repaired . | . . . . . . Time . | . . . . . . Parts Recycled . | . . . . . . Recycled Matter . | . . . . . . Retrieved Matter . | . . . . . . Retrieved Components . | . . . . . . Parts Scanalyzed 1 | . . . 1 . . Part Schematics Acquired 1 | . . . 1 . . Parts Damaged . | . . . . . . Bothacking | -11 -10 -10 -9 -9 -9 ------------ Run | Scr Mat Min Mat Min Exi Used RIF Installer . | . . . . . . Robots Hacked . | . . . . . . Non-combat . | . . . . . . Combat . | . . . . . . Robot Hacks Applied . | . . . . . . Relay Couplers Released . | . . . . . . Fabnet Peak Effective % . | . . . . . . Robots Rewired . | . . . . . . Allies Hacked . | . . . . . . Hacks Repelled . | . . . . . . Allies | -11 -10 -10 -9 -9 -9 -------- Run | Scr Mat Min Mat Min Exi Total Allies 1 | . . 1 . . . Largest Group 1 | . . 1 . . . Highest-Rated Group 31 | . . 31 . . . Highest-Rated Ally 31 | . . 31 . . . Total Orders . | . . . . . . Ally Attacks . | . . . . . . Total Damage . | . . . . . . Kills . | . . . . . . Allies Corrupted . | . . . . . . Allies Melted . | . . . . . . Intel | -11 -10 -10 -9 -9 -9 ------- Run | Scr Mat Min Mat Min Exi Robot Analysis Total 1 | . 1 . . . . Derelict Logs Recovered 2 | . . 2 . . . Drone Launches . | . . . . . . Drone Recoveries . | . . . . . . Exploration | -11 -10 -10 -9 -9 -9 ------------- Run | Scr Mat Min Mat Min Exi Turns Passed 6499 | 45 1785 963 2530 375 801 Spaces Moved 3343 | 11 921 562 1240 206 403 Core . | . . . . . . Treads 3343 | 11 921 562 1240 206 403 Legs . | . . . . . . Wheels . | . . . . . . Hover . | . . . . . . Flight . | . . . . . . Fastest Speed 160 | 160 160 160 160 160 160 Average Speed 160 | 160 160 160 162 160 160 Slowest Speed 240 | 160 160 160 240 160 160 Overloaded Moves . | . . . . . . Propulsion Burnouts . | . . . . . . Robots Hopped . | . . . . . . Cave-ins Triggered . | . . . . . . Exploration Rate (%) 67 | 3 95 98 93 58 59 Regions Visited 5 Branch Regions 3 Pre-discovered Areas 5 | . 2 . 2 . 1 Known Exits Taken . | . . . . . . Unknown Exits Taken 5 | 1 1 1 1 1 . Scrap Searched 2 | . . 1 . 1 . Spaces Dug 13 | . . . 13 . . Terrain Destroyed 34 | . . . 13 . 21 Melee 5 | . . . 5 . . Projectile . | . . . . . . AOE 29 | . . . 8 . 21 Terrain Rammed . | . . . . . . Walls Destroyed . | . . . . . . Machines Disabled . | . . . . . . Actions | -11 -10 -10 -9 -9 -9 --------- Run | Scr Mat Min Mat Min Exi Total 3976 | 28 1094 605 1534 233 482 Wait 221 | . 72 33 96 10 10 Move 3338 | 10 920 561 1239 205 403 Hop . | . . . . . . Pick Up 47 | 2 15 . 22 2 6 Fast Attach 5 | . 3 . 2 . . Attach 24 | 4 2 . 10 . 8 Detach 1 | . . . 1 . . Swap 30 | . 3 . 24 . 3 Drop 48 | 5 6 . 26 2 9 Fire 246 | 7 72 10 106 8 43 Melee 8 | . . . 8 . . Ram . | . . . . . . Kick . | . . . . . . Crush 8 | . 1 1 . 6 . Escape Stasis . | . . . . . . Rewire . | . . . . . . Trap . | . . . . . . Miscellaneous . | . . . . . . Route ------- -11/Scrapyard -10/Materials (discovered 4 exits: *Mat x3 / [*Min]) -10/Mines (discovered 2 exits: *Mat x2) -9/Materials (discovered 3 exits: [*Mat x2] / [*Min]) -9/Mines (discovered 3 exits: [*Mat x2] / *Exi) -9/Exiles (discovered 1 exit: [*Min]) History --------- Turn | Location | Event 27 | -11/Scrapyard | Discovered new exit (range 3) 46 | -11/Scrapyard | Entered Materials 306 | -10/Materials | Build established: Mutant 396 | -10/Materials | Discovered new exit (range 16) 553 | -10/Materials | Discovered new exit (range 14) 831 | -10/Materials | Discovered new exit (range 16) 1442 | -10/Materials | Discovered new exit (range 16) 1831 | -10/Materials | Entered Mines 1833 | -10/Mines | Core integrity fell below 50% 1971 | -10/Mines | Learned Materials emergency access door positions 1981 | -10/Mines | Discovered new exit (range 15) 1986 | -10/Mines | Learned Materials stockpile data 2064 | -10/Mines | Discovered new exit (range 12) 2122 | -10/Mines | Received a Mining Laser from a helpful Derelict 2622 | -10/Mines | Found a hidden stash of uninstalled traps 2794 | -10/Mines | Entered Materials 2794 | -9/Materials | Evolved 2 slots: Propulsion x1, Utility x1 2983 | -9/Materials | Lost 3 parts (1n1u1w) 3364 | -9/Materials | Discovered new exit (range 10) 3543 | -9/Materials | Discovered new exit (range 11) 3767 | -9/Materials | Discovered new exit (range 9) 4537 | -9/Materials | Build established: Scavenger-Mutant 5324 | -9/Materials | Entered Mines 5440 | -9/Mines | Discovered new exit (range 8) 5550 | -9/Mines | Discovered new exit (range 8) 5557 | -9/Mines | Received a Rocket Launcher from a helpful Derelict 5614 | -9/Mines | Found a damaged Exp. Sensor Array with a note attached 5618 | -9/Mines | Found Prototype Device 5693 | -9/Mines | Deemed a non-threat by the Exiles lab entrance 5693 | -9/Mines | Discovered new exit (range 5) 5699 | -9/Mines | Entered Exiles 5743 | -9/Exiles | Met 8R-AWN 5775 | -9/Exiles | Met EX-HEX 5871 | -9/Exiles | Met EX-DEC 5902 | -9/Exiles | Learned location of Zion (-7) 5976 | -9/Exiles | Discovered new exit (range 14) 6296 | -9/Exiles | Attacked by the Exiles 6330 | -9/Exiles | Core integrity fell below 50% 6464 | -9/Exiles | Lost 8 parts (1p3n1u3w) 6472 | -9/Exiles | Core integrity fell below 20% 6500 | -9/Exiles | Destroyed by 8R-AWN with 8R-AWN's Boregun Last Messages --------------- 06461_ Destroyed Prototype Protection. 06462_ Penetrated by HV Slug. 06466_ Critical hit (Destroy). 06466_ Penetrated by HV Slug. 06466_ Critical hit (Destroy). 06471_ Penetrated by HV Slug. 06471_ Critical hit (Destroy). 06471_ Penetrated by HV Slug. 06479_ Critical hit (Destroy). 06479_ Imp. Assault Rifle destroyed. 06479_ Penetrated by HV Slug. 06480_ Dropped Lrg. Matter Pod. 06481_ Extracted 150 matter. 06483_ Penetrated by HV Slug. 06483_ Lgt. Armor Plating destroyed. 06483_ Penetrated by HV Slug. 06488_ HV Slug penetrates Wall. 06492_ Penetrated by HV Slug. 06496_ HV Slug penetrates Wall. 06500_ Penetrated by HV Slug. Map ----- +----------------------------------------------------+ | ?????????????????????????????????????????????????? | | ?????????????????????????????????????????????????? | | ?????????#####???????????????????????????????????? | | ????????## ##??????????????????????????????????? | | ????????# #??????????????????????????????????? | | ????????# < #??????????????????????????????????? | | ????????# ###????????????????????????????????? | | ????????# #????????????????????????????????? | | ????????# / #?????????????????????????????????? | | ????????## ! #?????????????????????????????????? | | ?????????# ##????????????????????????????????? | | ?????????## #????????????#######?????????????? | | ??????????# #######??????#!!! "#?????????????? | | ??????????# #""##?????# "#?????????????? | | ??????????## #?????# "#?????????????? | | ???????????##" ##???## ""#????????????## | | ???????????#"" #####" ""#???????????? | | ???????????#### ##" ""#????????????" | | ??????????????## #"" #??????????????" | | ???????????????#"## ##????????????"" | | ???????????????####### ##???????????"" | | ?????????????????????### #??????????? | | ???????????????########" ###???????????" | | ???????????????# ! """"" #?????????# | | ???????????????#! g # ####???### | | ???????????????#! @ # """#####X# | | ???????????????#! ### | | ???????????????# !"""" "#;#??# | | ???????????????########## #???# # | | ????????????????????????# #????## | | ????????????????????????# #???????### | | ????????????????????????# #??????????# % | | ????????????????????????# #???????????## | | ????????????????????????# #????????????## | | ????????????????????????? ??????????????#""" | | ????????????????????????? ?????????????##" | | ????????????????????????? ?????????????#"" | | ????????????????????????? ?????????????#""" | | ????????????????????????? ????????????#""" | | ????????????????????????? ????????????#""" | | ????????????????????????? ????????????#"" | | ??????????????????????????????????????#""" | | ??????????????????????????????????????#"" | | ??????????????????????????????????????##"" | | ???????????????????????????????????????#"""" | | ???????????????????????????????????????## | | ????????????????????????????????????????#" | | ????????????????????????????????????????#"""" | | ????????????????????????????????????????#"" | | ?????????????????????????????????????????" | +----------------------------------------------------+ Best States ------------- Heat Dissipation 28 Energy Generation 12 Energy Capacity 265 Matter Stores 300 Matter Capacity 300 Sight Range 16 Terrain Scan Density 10 Armor Coverage 450 Evasion (%) 40 Targeting Accuracy 6 Recoil Reduction 3 Item Schematics ----------------- Med. Armor Plating | -9/Materials | Scanalyzed Robot Schematics ------------------ None Fabricated ------------ Nothing Alien Tech Used ----------------- None Achievements -------------- None Challenges ------------ None Game ------ Seed AutogunSuspensionEngine Manual? 0 Play Time 00:36:35 Cumulative 562.6 hours Start 2022.04.03 @ 23:52:31 End 2022.04.04 @ 00:30:06 Sessions 1 Manual Loads 0 Difficulty Rogue Special Mode None Game No. 538 Rogue 538 Adventurer 0 Explorer 0 Win Type - Total 17 Types 10/2/3/1/0/0/0/1/0 Lore% 86 Gallery% 93 Achievement% 76 Wizard Run 0 Options --------- ASCII 0 Keyboard 0 Movement Mouse Keybinds 1 Fullscreen 2 Font 24/Smallcaps Map View 76x50 Tactical HUD 1 Map Filters NONE Filters NONE Steam 1 RUN: 17ff0bff-cdb3-4505-b8a4-71cb9eb60464